[Event "Early-Titled-Tuesday-Blitz-February-27-2024"]
[Site "Chess.com"]
[Date "2024.02.27"]
[Round "11"]
[White "Aisen1011"]
[Black "HanSchut"]
[Result "1-0"]
[WhiteElo "2483"]
[BlackElo "2308"]
[TimeControl "180+1"]
[EndTime "10:05:23 PST"]
[Termination "Aisen1011 won by resignation"]

1. d4 {[%clk 0:02:53.5]} 1... Nf6 {[%clk 0:02:59.5]} 2. c4 {[%clk 0:02:53.9]}
2... g6 {[%clk 0:02:59.7]} 3. Nc3 {[%clk 0:02:54.5]} 3... d5 {[%clk 0:03:00]} 4.
Nf3 {[%clk 0:02:54.4]} 4... Bg7 {[%clk 0:02:59.8]} 5. Bg5 {[%clk 0:02:55]} 5...
Ne4 {[%clk 0:02:59.9]} 6. cxd5 {[%clk 0:02:55.6]} 6... Nxg5 {[%clk 0:02:55.3]}
7. Nxg5 {[%clk 0:02:56.5]} 7... e6 {[%clk 0:02:55.8]} 8. Qd2 {[%clk 0:02:57.1]}
8... h6 {[%clk 0:02:55.7]} 9. Nh3 {[%clk 0:02:56.7]} 9... exd5 {[%clk 0:02:55]}
10. Nf4 {[%clk 0:02:57.4]} 10... c6 {[%clk 0:02:50.1]} 11. e3 {[%clk 0:02:56.9]}
11... O-O {[%clk 0:02:48.6]} 12. Bd3 {[%clk 0:02:56.8]} 12... Re8 {[%clk
0:02:39]} 13. O-O {[%clk 0:02:56.2]} 13... Nd7 {[%clk 0:02:34.5]} 14. Rae1
{[%clk 0:02:53]} 14... Nf6 {[%clk 0:02:33.6]} 15. Qc2 {[%clk 0:02:52.5]} 15...
g5 {[%clk 0:02:16]} 16. Nfe2 {[%clk 0:02:51.6]} 16... Be6 {[%clk 0:02:11.7]} 17.
Ng3 {[%clk 0:02:51.1]} 17... Rc8 {[%clk 0:02:00.7]} 18. f4 {[%clk 0:02:38.5]}
18... c5 {[%clk 0:01:49.3]} 19. fxg5 {[%clk 0:02:34.6]} 19... hxg5 {[%clk
0:01:48.3]} 20. Bf5 {[%clk 0:02:23.5]} 20... Qd7 {[%clk 0:01:30.2]} 21. h3
{[%clk 0:02:02.2]} 21... b5 {[%clk 0:01:28.1]} 22. Qf2 {[%clk 0:01:59.7]} 22...
b4 {[%clk 0:01:21.3]} 23. Bxe6 {[%clk 0:01:57.7]} 23... Rxe6 {[%clk 0:01:08]}
24. Nce2 {[%clk 0:01:48.2]} 24... Rce8 {[%clk 0:01:05.7]} 25. Nf5 {[%clk
0:01:47.8]} 25... Ne4 {[%clk 0:00:59.6]} 26. Qf3 {[%clk 0:01:44.1]} 26... Rf6
{[%clk 0:00:55.6]} 27. Qg4 {[%clk 0:01:13.3]} 27... Qe6 {[%clk 0:00:38.2]} 28.
dxc5 {[%clk 0:00:57.9]} 28... Nd2 {[%clk 0:00:26.6]} 29. Ned4 {[%clk 0:00:55.1]}
29... Qe4 {[%clk 0:00:19.8]} 30. Rf2 {[%clk 0:00:37]} 30... Qxg4 {[%clk
0:00:19.5]} 31. hxg4 {[%clk 0:00:37.9]} 31... Ne4 {[%clk 0:00:18.4]} 32. Rc2
{[%clk 0:00:36.2]} 32... Rc8 {[%clk 0:00:14.2]} 33. Ne7+ {[%clk 0:00:36]} 1-0

[Event "Early-Titled-Tuesday-Blitz-February-27-2024"]
[Site "Chess.com"]
[Date "2024.02.27"]
[Round "11"]
[White "nindjaxx8"]
[Black "GMKrikor"]
[Result "1-0"]
[WhiteElo "2671"]
[BlackElo "2883"]
[TimeControl "180+1"]
[EndTime "10:05:24 PST"]
[Termination "nindjaxx8 won by resignation"]

1. d4 {[%clk 0:03:00.9]} 1... Nf6 {[%clk 0:02:59.6]} 2. c4 {[%clk 0:03:00.3]}
2... g6 {[%clk 0:02:59.2]} 3. Nc3 {[%clk 0:02:58.8]} 3... d5 {[%clk 0:02:59.4]}
4. cxd5 {[%clk 0:02:54.8]} 4... Nxd5 {[%clk 0:03:00.3]} 5. e4 {[%clk 0:02:54.5]}
5... Nxc3 {[%clk 0:03:00.4]} 6. bxc3 {[%clk 0:02:37.3]} 6... Bg7 {[%clk
0:02:59]} 7. Nf3 {[%clk 0:02:36.9]} 7... c5 {[%clk 0:02:58.7]} 8. Be3 {[%clk
0:02:36.4]} 8... Qa5 {[%clk 0:02:55.3]} 9. Qd2 {[%clk 0:02:35.9]} 9... O-O
{[%clk 0:02:39.4]} 10. Rc1 {[%clk 0:02:33.2]} 10... Bg4 {[%clk 0:02:37.3]} 11.
Be2 {[%clk 0:02:24.7]} 11... Bxf3 {[%clk 0:02:20.1]} 12. Bxf3 {[%clk 0:02:23.4]}
12... cxd4 {[%clk 0:02:18.9]} 13. cxd4 {[%clk 0:02:17.6]} 13... Qxd2+ {[%clk
0:02:18.6]} 14. Kxd2 {[%clk 0:02:15.1]} 14... Rd8 {[%clk 0:02:15]} 15. d5 {[%clk
0:02:04.2]} 15... e6 {[%clk 0:02:11.1]} 16. Ke2 {[%clk 0:02:02.7]} 16... exd5
{[%clk 0:02:07.7]} 17. exd5 {[%clk 0:02:03.6]} 17... Na6 {[%clk 0:01:19.5]} 18.
Rhd1 {[%clk 0:01:58.2]} 18... Nb4 {[%clk 0:01:03.1]} 19. Rd2 {[%clk 0:01:41]}
19... Rd7 {[%clk 0:00:57.5]} 20. d6 {[%clk 0:01:30.7]} 20... Rad8 {[%clk
0:00:50]} 21. Bxa7 {[%clk 0:00:56.8]} 21... Bh6 {[%clk 0:00:49.5]} 22. Be3
{[%clk 0:00:29.3]} 22... Bxe3 {[%clk 0:00:49.2]} 23. fxe3 {[%clk 0:00:29]} 23...
Rxd6 {[%clk 0:00:49.4]} 24. Rxd6 {[%clk 0:00:28.3]} 24... Rxd6 {[%clk
0:00:50.3]} 25. a3 {[%clk 0:00:28.6]} 25... Nd5 {[%clk 0:00:27.5]} 26. Kf2
{[%clk 0:00:15.5]} 26... b6 {[%clk 0:00:26.5]} 27. Rd1 {[%clk 0:00:15.1]} 1-0

[Event "Early-Titled-Tuesday-Blitz-February-27-2024"]
[Site "Chess.com"]
[Date "2024.02.27"]
[Round "11"]
[White "pfalcon1949"]
[Black "yuriydovzik"]
[Result "1-0"]
[WhiteElo "1915"]
[BlackElo "2117"]
[TimeControl "180+1"]
[EndTime "10:05:26 PST"]
[Termination "pfalcon1949 won on time"]

1. e4 {[%clk 0:03:00.9]} 1... c6 {[%clk 0:02:55.7]} 2. d4 {[%clk 0:02:58]} 2...
Na6 {[%clk 0:02:55.2]} 3. Nc3 {[%clk 0:02:50.1]} 3... Nc7 {[%clk 0:02:53.9]} 4.
f4 {[%clk 0:02:47.8]} 4... d5 {[%clk 0:02:49.9]} 5. e5 {[%clk 0:02:47.2]} 5...
h5 {[%clk 0:02:44.4]} 6. h3 {[%clk 0:02:46.6]} 6... Bf5 {[%clk 0:02:40.7]} 7.
Bd3 {[%clk 0:02:45.3]} 7... Nh6 {[%clk 0:02:36.7]} 8. Nf3 {[%clk 0:02:43.8]}
8... e6 {[%clk 0:02:27.2]} 9. O-O {[%clk 0:02:43.3]} 9... c5 {[%clk 0:02:12.4]}
10. Be3 {[%clk 0:02:37.7]} 10... a6 {[%clk 0:02:03.2]} 11. dxc5 {[%clk
0:02:32.6]} 11... d4 {[%clk 0:01:38.2]} 12. Nxd4 {[%clk 0:02:24.3]} 12... Nd5
{[%clk 0:01:34.3]} 13. Nxd5 {[%clk 0:02:19.2]} 13... Qxd5 {[%clk 0:01:30]} 14.
Nxf5 {[%clk 0:02:16.9]} 14... Nxf5 {[%clk 0:01:22.8]} 15. Bxf5 {[%clk
0:02:14.9]} 15... Qxd1 {[%clk 0:01:19.9]} 16. Raxd1 {[%clk 0:02:12.5]} 16...
exf5 {[%clk 0:01:20.4]} 17. b4 {[%clk 0:02:10.8]} 17... Be7 {[%clk 0:01:15.7]}
18. c3 {[%clk 0:02:09.6]} 18... a5 {[%clk 0:01:07.5]} 19. Rd2 {[%clk 0:02:08.3]}
19... axb4 {[%clk 0:00:54]} 20. cxb4 {[%clk 0:02:07.4]} 20... Ra3 {[%clk
0:00:53.9]} 21. Kf2 {[%clk 0:02:04.8]} 21... O-O {[%clk 0:00:48.3]} 22. Rfd1
{[%clk 0:02:04.4]} 22... Bh4+ {[%clk 0:00:42.6]} 23. Ke2 {[%clk 0:01:54.7]}
23... Rfa8 {[%clk 0:00:40.5]} 24. Bf2 {[%clk 0:01:23.8]} 24... Bxf2 {[%clk
0:00:33.9]} 25. Kxf2 {[%clk 0:01:24.7]} 25... Kh7 {[%clk 0:00:28.5]} 26. Re2
{[%clk 0:01:09.7]} 26... R8a4 {[%clk 0:00:24.3]} 27. Rb1 {[%clk 0:01:06.9]}
27... Rc3 {[%clk 0:00:22.4]} 28. Rbb2 {[%clk 0:01:05.5]} 28... h4 {[%clk
0:00:21.4]} 29. Rec2 {[%clk 0:00:57.4]} 29... Rd3 {[%clk 0:00:18.8]} 30. b5
{[%clk 0:00:55.6]} 30... Rxf4+ {[%clk 0:00:18]} 31. Kg1 {[%clk 0:00:55.6]} 31...
Rd1+ {[%clk 0:00:16.6]} 32. Kh2 {[%clk 0:00:55.5]} 32... Rff1 {[%clk 0:00:16.5]}
33. g4 {[%clk 0:00:52.3]} 33... Rh1+ {[%clk 0:00:08.6]} 34. Kg2 {[%clk
0:00:52.4]} 34... Rdg1+ {[%clk 0:00:08]} 35. Kf2 {[%clk 0:00:46.8]} 35... Rf1+
{[%clk 0:00:07]} 36. Ke2 {[%clk 0:00:44.9]} 36... Re1+ {[%clk 0:00:05.7]} 37.
Kd2 {[%clk 0:00:43.7]} 37... Rxe5 {[%clk 0:00:01.6]} 38. gxf5 {[%clk 0:00:43.2]}
1-0

[Event "Early-Titled-Tuesday-Blitz-February-27-2024"]
[Site "Chess.com"]
[Date "2024.02.27"]
[Round "11"]
[White "phantom19801127"]
[Black "UK_23"]
[Result "1-0"]
[WhiteElo "2542"]
[BlackElo "2376"]
[TimeControl "180+1"]
[EndTime "10:05:34 PST"]
[Termination "phantom19801127 won by checkmate"]

1. d4 {[%clk 0:03:00.9]} 1... d5 {[%clk 0:02:58.7]} 2. Nf3 {[%clk 0:02:59.9]}
2... Nf6 {[%clk 0:02:58.5]} 3. c4 {[%clk 0:03:00]} 3... e6 {[%clk 0:02:58.3]} 4.
Nc3 {[%clk 0:02:59.7]} 4... Be7 {[%clk 0:02:58]} 5. Bg5 {[%clk 0:02:59.2]} 5...
O-O {[%clk 0:02:57.2]} 6. e3 {[%clk 0:02:59.5]} 6... b6 {[%clk 0:02:57.2]} 7.
cxd5 {[%clk 0:02:54.9]} 7... Nxd5 {[%clk 0:02:56.5]} 8. Bxe7 {[%clk 0:02:53.2]}
8... Qxe7 {[%clk 0:02:57.4]} 9. Nxd5 {[%clk 0:02:49.5]} 9... exd5 {[%clk
0:02:58.3]} 10. Bd3 {[%clk 0:02:49.4]} 10... c5 {[%clk 0:02:55.4]} 11. h3 {[%clk
0:02:34.9]} 11... Be6 {[%clk 0:02:53.8]} 12. O-O {[%clk 0:02:31]} 12... Nc6
{[%clk 0:02:45]} 13. Rc1 {[%clk 0:02:30.2]} 13... Rfc8 {[%clk 0:02:40.3]} 14.
Qa4 {[%clk 0:02:15.4]} 14... c4 {[%clk 0:02:37.2]} 15. Bb1 {[%clk 0:02:09.8]}
15... a6 {[%clk 0:02:37]} 16. Qd1 {[%clk 0:02:08]} 16... b5 {[%clk 0:02:34.8]}
17. Re1 {[%clk 0:02:02.1]} 17... f5 {[%clk 0:02:30]} 18. Ne5 {[%clk 0:01:45.8]}
18... Nxe5 {[%clk 0:02:28.5]} 19. dxe5 {[%clk 0:01:46.1]} 19... g6 {[%clk
0:02:19.4]} 20. Qd4 {[%clk 0:01:44.9]} 20... b4 {[%clk 0:02:17]} 21. Bc2 {[%clk
0:01:40.1]} 21... a5 {[%clk 0:02:11]} 22. Bd1 {[%clk 0:01:39.7]} 22... Rc5
{[%clk 0:02:03.2]} 23. Bf3 {[%clk 0:01:39.3]} 23... Rac8 {[%clk 0:02:03.7]} 24.
Red1 {[%clk 0:01:34]} 24... a4 {[%clk 0:02:03.1]} 25. g3 {[%clk 0:01:26.6]}
25... Qa7 {[%clk 0:01:54.9]} 26. h4 {[%clk 0:01:18.6]} 26... a3 {[%clk
0:01:54.9]} 27. bxa3 {[%clk 0:01:13.1]} 27... Qxa3 {[%clk 0:01:55.8]} 28. h5
{[%clk 0:00:57.6]} 28... c3 {[%clk 0:01:44.3]} 29. hxg6 {[%clk 0:00:54.9]} 29...
hxg6 {[%clk 0:01:45.2]} 30. Rc2 {[%clk 0:00:49]} 30... b3 {[%clk 0:01:17.6]} 31.
axb3 {[%clk 0:00:46.6]} 31... Qxb3 {[%clk 0:01:18.5]} 32. Rdc1 {[%clk
0:00:44.9]} 32... R8c7 {[%clk 0:01:17.1]} 33. Qh4 {[%clk 0:00:40.6]} 33... Rc4
{[%clk 0:01:01.9]} 34. Qf6 {[%clk 0:00:37.2]} 34... Bf7 {[%clk 0:00:59.6]} 35.
e6 {[%clk 0:00:36.3]} 35... Be8 {[%clk 0:00:47.8]} 36. Kg2 {[%clk 0:00:36.3]}
36... R4c5 {[%clk 0:00:34.9]} 37. Rh1 {[%clk 0:00:34.1]} 37... Rg7 {[%clk
0:00:34.9]} 38. e7 {[%clk 0:00:22.6]} 38... d4 {[%clk 0:00:28.8]} 39. Qf8#
{[%clk 0:00:21.9]} 1-0

[Event "Early-Titled-Tuesday-Blitz-February-27-2024"]
[Site "Chess.com"]
[Date "2024.02.27"]
[Round "11"]
[White "Kimkibo"]
[Black "Egor_Koshulyan"]
[Result "0-1"]
[WhiteElo "2238"]
[BlackElo "2662"]
[TimeControl "180+1"]
[EndTime "10:05:35 PST"]
[Termination "Egor_Koshulyan won on time"]

1. d4 {[%clk 0:02:58]} 1... Nf6 {[%clk 0:02:59.7]} 2. Nf3 {[%clk 0:02:54.9]}
2... d5 {[%clk 0:02:59.1]} 3. Bf4 {[%clk 0:02:52.5]} 3... c5 {[%clk 0:02:59.1]}
4. e3 {[%clk 0:02:51.1]} 4... Nc6 {[%clk 0:02:59]} 5. Nbd2 {[%clk 0:02:50.7]}
5... Qb6 {[%clk 0:02:59.2]} 6. dxc5 {[%clk 0:02:49.1]} 6... Qxb2 {[%clk
0:02:59.8]} 7. Rb1 {[%clk 0:02:49]} 7... Qc3 {[%clk 0:03:00.4]} 8. Bb5 {[%clk
0:02:47.8]} 8... g6 {[%clk 0:03:01]} 9. Be5 {[%clk 0:02:31.5]} 9... Qxc5 {[%clk
0:02:57.3]} 10. Bxf6 {[%clk 0:02:31.3]} 10... exf6 {[%clk 0:02:58.2]} 11. O-O
{[%clk 0:02:31]} 11... Bg7 {[%clk 0:02:57.8]} 12. Nd4 {[%clk 0:02:20.5]} 12...
O-O {[%clk 0:02:57.1]} 13. N2b3 {[%clk 0:02:17.3]} 13... Qd6 {[%clk 0:02:57.2]}
14. Bd3 {[%clk 0:02:07]} 14... f5 {[%clk 0:02:53.9]} 15. Qd2 {[%clk 0:02:02.6]}
15... a6 {[%clk 0:02:48]} 16. Rfd1 {[%clk 0:02:02.2]} 16... Nxd4 {[%clk
0:02:48.1]} 17. Nxd4 {[%clk 0:02:00.9]} 17... f4 {[%clk 0:02:48.5]} 18. Bf1
{[%clk 0:01:54.3]} 18... fxe3 {[%clk 0:02:47.1]} 19. Qxe3 {[%clk 0:01:55.2]}
19... Bg4 {[%clk 0:02:44.5]} 20. Rd2 {[%clk 0:01:49.9]} 20... b5 {[%clk
0:02:43.3]} 21. h3 {[%clk 0:01:46.2]} 21... Bd7 {[%clk 0:02:39.9]} 22. Qf3
{[%clk 0:01:41.8]} 22... Rfe8 {[%clk 0:02:33]} 23. Rbd1 {[%clk 0:01:41.1]} 23...
Rac8 {[%clk 0:02:31.8]} 24. g3 {[%clk 0:01:24.9]} 24... b4 {[%clk 0:02:28.5]}
25. Bg2 {[%clk 0:01:22.7]} 25... Re5 {[%clk 0:02:23.3]} 26. Re2 {[%clk
0:01:14.6]} 26... Rc3 {[%clk 0:02:12.9]} 27. Qf4 {[%clk 0:01:03.5]} 27... Qe7
{[%clk 0:02:06]} 28. Bxd5 {[%clk 0:00:55.7]} 28... Rxe2 {[%clk 0:01:39.4]} 29.
Nxe2 {[%clk 0:00:53.5]} 29... Rxc2 {[%clk 0:01:39.9]} 30. Qxf7+ {[%clk
0:00:40.7]} 30... Qxf7 {[%clk 0:01:36.8]} 31. Bxf7+ {[%clk 0:00:41.1]} 31...
Kxf7 {[%clk 0:01:37.7]} 32. Rxd7+ {[%clk 0:00:41.4]} 32... Kg8 {[%clk
0:01:36.4]} 33. Rd8+ {[%clk 0:00:36.7]} 33... Kf7 {[%clk 0:01:35.8]} 34. Rd7+
{[%clk 0:00:37]} 34... Kf8 {[%clk 0:01:36.4]} 35. Nf4 {[%clk 0:00:35.1]} 35...
Bf6 {[%clk 0:01:32.7]} 36. Rxh7 {[%clk 0:00:31.9]} 36... Rxa2 {[%clk 0:01:31.3]}
37. Nxg6+ {[%clk 0:00:25.9]} 37... Kg8 {[%clk 0:01:27.5]} 38. Rb7 {[%clk
0:00:24.7]} 38... a5 {[%clk 0:01:28.1]} 39. h4 {[%clk 0:00:24.6]} 39... Bd4
{[%clk 0:01:24.1]} 40. h5 {[%clk 0:00:20.3]} 40... Rxf2 {[%clk 0:01:24]} 41. Kh1
{[%clk 0:00:13]} 41... Rf7 {[%clk 0:01:23.3]} 42. Rb5 {[%clk 0:00:12.2]} 42...
Ra7 {[%clk 0:01:22.7]} 43. h6 {[%clk 0:00:10.2]} 43... Kh7 {[%clk 0:01:22]} 44.
Nf4 {[%clk 0:00:03.2]} 44... Bc3 {[%clk 0:01:10.5]} 0-1

[Event "Early-Titled-Tuesday-Blitz-February-27-2024"]
[Site "Chess.com"]
[Date "2024.02.27"]
[Round "11"]
[White "djano"]
[Black "GilbertoHernandezAmura"]
[Result "1-0"]
[WhiteElo "2582"]
[BlackElo "2418"]
[TimeControl "180+1"]
[EndTime "10:05:37 PST"]
[Termination "djano won on time"]

1. f4 {[%clk 0:03:00.9]} 1... d5 {[%clk 0:02:57.8]} 2. Nf3 {[%clk 0:03:00.2]}
2... Nc6 {[%clk 0:02:57.6]} 3. d4 {[%clk 0:02:58.3]} 3... Bg4 {[%clk 0:02:57.2]}
4. e3 {[%clk 0:02:56.4]} 4... e6 {[%clk 0:02:56.5]} 5. Bb5 {[%clk 0:02:55.7]}
5... Ne7 {[%clk 0:02:54.6]} 6. h3 {[%clk 0:02:54.9]} 6... Bh5 {[%clk 0:02:47.9]}
7. O-O {[%clk 0:02:54.9]} 7... a6 {[%clk 0:02:47.5]} 8. Bd3 {[%clk 0:02:54.3]}
8... Nc8 {[%clk 0:02:36.1]} 9. a3 {[%clk 0:02:51.8]} 9... Nd6 {[%clk 0:02:36.2]}
10. Nbd2 {[%clk 0:02:50.9]} 10... f5 {[%clk 0:02:27.1]} 11. Qe1 {[%clk
0:02:50.3]} 11... Be7 {[%clk 0:02:25.7]} 12. c4 {[%clk 0:02:48.8]} 12... O-O
{[%clk 0:02:09.5]} 13. Kh1 {[%clk 0:02:45.4]} 13... Bf6 {[%clk 0:01:59.8]} 14.
b4 {[%clk 0:02:42]} 14... Ne7 {[%clk 0:01:55.4]} 15. Bb2 {[%clk 0:02:40.3]}
15... c6 {[%clk 0:01:53]} 16. Ne5 {[%clk 0:02:35.9]} 16... Bxe5 {[%clk
0:01:51.5]} 17. dxe5 {[%clk 0:02:31.1]} 17... Ndc8 {[%clk 0:01:27.3]} 18. Nf3
{[%clk 0:02:30.9]} 18... Bxf3 {[%clk 0:01:25.2]} 19. gxf3 {[%clk 0:02:29.9]}
19... b5 {[%clk 0:01:18.4]} 20. c5 {[%clk 0:02:26.9]} 20... Ng6 {[%clk 0:01:17]}
21. Rg1 {[%clk 0:02:25.4]} 21... Qh4 {[%clk 0:01:05.7]} 22. Rg3 {[%clk 0:02:23]}
22... Kh8 {[%clk 0:00:58.4]} 23. Kh2 {[%clk 0:02:15.4]} 23... Nce7 {[%clk
0:00:56]} 24. a4 {[%clk 0:02:13.2]} 24... Rfb8 {[%clk 0:00:47.8]} 25. Bc3 {[%clk
0:02:11.7]} 25... Qh5 {[%clk 0:00:42.9]} 26. Ra2 {[%clk 0:02:03.3]} 26... Nh4
{[%clk 0:00:42.4]} 27. Be2 {[%clk 0:01:56.1]} 27... Rg8 {[%clk 0:00:30.1]} 28.
Bd1 {[%clk 0:01:24.2]} 28... Qh6 {[%clk 0:00:20.1]} 29. Rg5 {[%clk 0:01:21]}
29... Nhg6 {[%clk 0:00:15.3]} 30. Qg1 {[%clk 0:01:09.5]} 30... Nf8 {[%clk
0:00:13.2]} 31. Be1 {[%clk 0:01:05.4]} 31... Neg6 {[%clk 0:00:10.1]} 32. Rag2
{[%clk 0:01:02.9]} 32... Nd7 {[%clk 0:00:07.3]} 33. R2g3 {[%clk 0:00:56.7]}
33... Rac8 {[%clk 0:00:03.1]} 34. Qg2 {[%clk 0:00:56.7]} 34... bxa4 {[%clk
0:00:03.4]} 35. Bxa4 {[%clk 0:00:57.3]} 35... a5 {[%clk 0:00:04]} 36. bxa5
{[%clk 0:00:57.7]} 36... Nxc5 {[%clk 0:00:04.6]} 37. Bc2 {[%clk 0:00:55.6]}
37... Na6 {[%clk 0:00:04.4]} 38. Bd3 {[%clk 0:00:54.4]} 38... Nc7 {[%clk
0:00:04.4]} 39. a6 {[%clk 0:00:53.3]} 39... c5 {[%clk 0:00:05.1]} 40. Qa2 {[%clk
0:00:47.2]} 40... c4 {[%clk 0:00:04.6]} 41. Bf1 {[%clk 0:00:47.8]} 41... Ra8
{[%clk 0:00:03.5]} 42. h4 {[%clk 0:00:48.5]} 1-0

[Event "Early-Titled-Tuesday-Blitz-February-27-2024"]
[Site "Chess.com"]
[Date "2024.02.27"]
[Round "11"]
[White "ajian"]
[Black "tylityli"]
[Result "0-1"]
[WhiteElo "2448"]
[BlackElo "2307"]
[TimeControl "180+1"]
[EndTime "10:05:39 PST"]
[Termination "tylityli won on time"]

1. d4 {[%clk 0:02:55]} 1... Nf6 {[%clk 0:02:59.3]} 2. c4 {[%clk 0:02:55.3]} 2...
e6 {[%clk 0:02:59.1]} 3. Nc3 {[%clk 0:02:55.6]} 3... Bb4 {[%clk 0:02:59.1]} 4.
Qc2 {[%clk 0:02:55.9]} 4... O-O {[%clk 0:02:58]} 5. a3 {[%clk 0:02:56.1]} 5...
Bxc3+ {[%clk 0:02:57.8]} 6. Qxc3 {[%clk 0:02:57]} 6... b6 {[%clk 0:02:55.1]} 7.
Bg5 {[%clk 0:02:56.1]} 7... Bb7 {[%clk 0:02:54.9]} 8. f3 {[%clk 0:02:55.6]} 8...
h6 {[%clk 0:02:54.6]} 9. Bh4 {[%clk 0:02:55.9]} 9... d5 {[%clk 0:02:54.9]} 10.
e3 {[%clk 0:02:55.6]} 10... Nbd7 {[%clk 0:02:53.5]} 11. Bd3 {[%clk 0:02:55.4]}
11... c5 {[%clk 0:02:53.6]} 12. cxd5 {[%clk 0:02:52.1]} 12... Nxd5 {[%clk
0:02:25.2]} 13. Bxd8 {[%clk 0:02:53]} 13... Nxc3 {[%clk 0:02:24.5]} 14. Bh4
{[%clk 0:02:24.8]} 14... Nd5 {[%clk 0:02:20.9]} 15. Bb5 {[%clk 0:01:36.3]} 15...
Nxe3 {[%clk 0:02:05.5]} 16. Ke2 {[%clk 0:01:16.2]} 16... Nf5 {[%clk 0:02:01.8]}
17. Bf2 {[%clk 0:01:12.5]} 17... Rfd8 {[%clk 0:01:39.9]} 18. Bxd7 {[%clk
0:00:39.6]} 18... Rxd7 {[%clk 0:01:37.9]} 19. dxc5 {[%clk 0:00:40.1]} 19... Ba6+
{[%clk 0:01:32]} 20. Ke1 {[%clk 0:00:35.2]} 20... Rc8 {[%clk 0:01:16.3]} 21. Rc1
{[%clk 0:00:29.2]} 21... Nd4 {[%clk 0:01:08.4]} 22. Bxd4 {[%clk 0:00:26]} 22...
Rxd4 {[%clk 0:01:08]} 23. b4 {[%clk 0:00:13.3]} 23... bxc5 {[%clk 0:01:04.9]}
24. bxc5 {[%clk 0:00:13]} 24... Rc4 {[%clk 0:00:57.3]} 25. Rxc4 {[%clk 0:00:07]}
25... Bxc4 {[%clk 0:00:58.2]} 26. Ne2 {[%clk 0:00:05.8]} 26... Rxc5 {[%clk
0:00:57.3]} 27. Kd2 {[%clk 0:00:06.2]} 27... Bxe2 {[%clk 0:00:55.7]} 28. Kxe2
{[%clk 0:00:05]} 28... Rc2+ {[%clk 0:00:55.9]} 29. Ke3 {[%clk 0:00:05.5]} 29...
Ra2 {[%clk 0:00:56.5]} 30. Rb1 {[%clk 0:00:02.8]} 30... Rxa3+ {[%clk 0:00:55.1]}
31. Kf4 {[%clk 0:00:03.7]} 31... Kh7 {[%clk 0:00:54]} 32. Rb7 {[%clk 0:00:03.4]}
32... Kg6 {[%clk 0:00:54.2]} 33. g4 {[%clk 0:00:03.3]} 33... Ra4+ {[%clk
0:00:52.7]} 34. Ke5 {[%clk 0:00:02.3]} 34... Ra5+ {[%clk 0:00:50.1]} 35. Kd6
{[%clk 0:00:01.1]} 35... Rd5+ {[%clk 0:00:47.8]} 36. Ke7 {[%clk 0:00:01.1]}
36... a5 {[%clk 0:00:35.2]} 37. h4 {[%clk 0:00:01.1]} 37... h5 {[%clk
0:00:32.5]} 0-1

[Event "Early-Titled-Tuesday-Blitz-February-27-2024"]
[Site "Chess.com"]
[Date "2024.02.27"]
[Round "11"]
[White "NovakRatko"]
[Black "Zq1"]
[Result "0-1"]
[WhiteElo "2475"]
[BlackElo "2622"]
[TimeControl "180+1"]
[EndTime "10:05:42 PST"]
[Termination "Zq1 won on time"]

1. d4 {[%clk 0:02:51.6]} 1... Nf6 {[%clk 0:02:58.9]} 2. c4 {[%clk 0:02:51.3]}
2... a6 {[%clk 0:02:59.1]} 3. Nc3 {[%clk 0:02:51.2]} 3... c5 {[%clk 0:02:59.2]}
4. d5 {[%clk 0:02:51]} 4... b5 {[%clk 0:02:58.1]} 5. cxb5 {[%clk 0:02:51.2]}
5... axb5 {[%clk 0:02:58.3]} 6. Nxb5 {[%clk 0:02:50.8]} 6... Qa5+ {[%clk
0:02:58.2]} 7. Nc3 {[%clk 0:02:51]} 7... Bb7 {[%clk 0:02:58.3]} 8. Bd2 {[%clk
0:02:49.2]} 8... Qb6 {[%clk 0:02:58.2]} 9. e4 {[%clk 0:02:47]} 9... e6 {[%clk
0:02:57.5]} 10. Bc4 {[%clk 0:02:36.2]} 10... Nxe4 {[%clk 0:02:56]} 11. Nf3
{[%clk 0:01:51.5]} 11... Nxd2 {[%clk 0:02:34.2]} 12. Qxd2 {[%clk 0:01:49.6]}
12... Be7 {[%clk 0:02:34.8]} 13. O-O {[%clk 0:01:43.2]} 13... O-O {[%clk
0:02:34]} 14. a3 {[%clk 0:01:28.9]} 14... Ba6 {[%clk 0:02:30.8]} 15. Bxa6 {[%clk
0:01:24.9]} 15... Qxa6 {[%clk 0:02:23.2]} 16. Rfd1 {[%clk 0:01:22.1]} 16... Qb7
{[%clk 0:02:17.1]} 17. Rab1 {[%clk 0:01:16.4]} 17... Na6 {[%clk 0:02:15.3]} 18.
d6 {[%clk 0:01:15.1]} 18... Bd8 {[%clk 0:02:09.8]} 19. Ng5 {[%clk 0:00:57.9]}
19... Bxg5 {[%clk 0:02:04.4]} 20. Qxg5 {[%clk 0:00:57.1]} 20... h6 {[%clk
0:02:03.7]} 21. Qh5 {[%clk 0:00:53.9]} 21... f5 {[%clk 0:01:54.9]} 22. Rd3
{[%clk 0:00:43.4]} 22... c4 {[%clk 0:01:47.2]} 23. Rd4 {[%clk 0:00:40.4]} 23...
Rac8 {[%clk 0:01:34.1]} 24. Qh3 {[%clk 0:00:39.8]} 24... Qb6 {[%clk 0:01:29.3]}
25. Qh4 {[%clk 0:00:39.1]} 25... Qc5 {[%clk 0:01:25.5]} 26. Na4 {[%clk
0:00:30.7]} 26... Qe5 {[%clk 0:01:18.4]} 27. Rxc4 {[%clk 0:00:22.8]} 27... f4
{[%clk 0:01:04.8]} 28. Rxc8 {[%clk 0:00:20]} 28... Rxc8 {[%clk 0:01:03.6]} 29.
Qe7 {[%clk 0:00:18.7]} 29... Qb5 {[%clk 0:00:59.5]} 30. Nc3 {[%clk 0:00:17.3]}
30... Rxc3 {[%clk 0:00:57.6]} 31. Qd8+ {[%clk 0:00:09.9]} 31... Kh7 {[%clk
0:00:55.5]} 32. a4 {[%clk 0:00:10.5]} 32... Qxb2 {[%clk 0:00:52.8]} 33. Rf1
{[%clk 0:00:09.6]} 33... Nc5 {[%clk 0:00:47]} 34. h3 {[%clk 0:00:08.6]} 34...
Rc1 {[%clk 0:00:44]} 35. Rxc1 {[%clk 0:00:06.5]} 35... Qxc1+ {[%clk 0:00:43.4]}
36. Kh2 {[%clk 0:00:07.4]} 36... f3 {[%clk 0:00:42.2]} 37. gxf3 {[%clk
0:00:06.3]} 37... Qf4+ {[%clk 0:00:41.3]} 38. Kg2 {[%clk 0:00:06.3]} 38... Qxd6
{[%clk 0:00:41]} 39. Qa5 {[%clk 0:00:04.7]} 39... Qd4 {[%clk 0:00:35.5]} 40. Qb5
{[%clk 0:00:04.6]} 40... Nxa4 {[%clk 0:00:34.3]} 0-1